fUST/lending_fUST_20250529
["ID","MTS","AMOUNT","RATE_DAILY","PERIOD"]
[362848103,1748489438965,-430.0,0.00019726,2]
[362848104,1748489438975,-430.0,0.00019726,2]
[362848105,1748489438984,-340.11,0.00019726,2]
[362848106,1748489438993,-430.0,0.00019726,2]
[362848107,1748489439002,-430.0,0.00019726,2]
[362848108,1748489439012,-430.0,0.00019726,2]
[362848109,1748489439021,-430.0,0.00019726,2]
[362848110,1748489439031,-430.0,0.00019726,2]
[362848111,1748489439125,-430.0,0.00019726,2]
[362848112,1748489439136,-430.0,0.00019726,2]
[362848113,1748489439147,-488.85,0.00019726,2]
[362848114,1748489439156,-430.0,0.00019726,2]
[362848115,1748489439165,-430.0,0.00019726,2]
[362848116,1748489439177,-430.0,0.00019726,2]
[362848117,1748489439188,-541.66611936,0.00019726,2]
[362848118,1748489439198,-430.0,0.00019726,2]
[362848119,1748489439207,-578.8,0.00019726,2]
[362848120,1748489439217,-1505.89,0.00019726,2]
[362848121,1748489439227,-430.0,0.00019726,2]
[362848122,1748489439236,-494.78393435,0.00019726,2]
[362848123,1748489439246,-488.59,0.00019726,2]
[362848124,1748489439255,-430.0,0.00019726,2]
[362848125,1748489439266,-192.88,0.00019726,2]
[362848126,1748489439275,-460.67362115,0.00019726,2]
[362848127,1748489439285,-430.0,0.00019726,2]
[362848128,1748489439294,-289.16,0.00019726,2]
[362848129,1748489439304,-430.0,0.00019726,2]
[362848130,1748489439313,-430.0,0.00019726,2]
[362848131,1748489439323,-430.0,0.00019726,2]
[362848132,1748489439334,-430.0,0.00019726,2]
[362848133,1748489439345,-430.0,0.00019726,2]
[362848134,1748489439355,-430.0,0.00019726,2]
[362848135,1748489439365,-1028.67,0.00019726,2]
[362848136,1748489439377,-437.92674852,0.00019726,2]
[362848137,1748489439387,-443.33724821,0.00019726,2]
[362848138,1748489439397,-1452.69,0.00019726,2]
[362848139,1748489439407,-173.27310817,0.00019808,2]
[362848140,1748489439416,-204.2791298,0.000199,2]
[362848141,1748489439427,-430.0,0.0002,2]
[362848142,1748489439436,-437.96947493,0.0002,2]
[362848143,1748489439446,-430.0,0.0002,2]
[362848144,1748489439456,-430.0,0.0002,2]
[362848145,1748489439466,-471.52,0.0002,2]
[362848146,1748489439476,-430.0,0.0002,2]
[362848147,1748489439486,-430.0,0.0002,2]
[362848148,1748489439497,-430.0,0.0002,2]
[362848149,1748489439506,-265.34639285,0.0002,2]
[362848150,1748489439515,-430.0,0.0002,2]
[362848151,1748489439525,-430.0,0.0002,2]
[362848152,1748489439534,-430.0,0.0002,2]
[362848153,1748489439543,-430.0,0.0002,2]
[362848154,1748489439552,-430.0,0.0002,2]
[362848155,1748489439562,-826.71,0.0002,2]
[362848157,1748489439571,-237.90370609,0.0002,2]
[362848158,1748489439582,-573.56,0.0002,2]
[362848159,1748489439591,-430.0,0.0002,2]
[362848160,1748489439600,-217.78,0.0002,2]
[362848161,1748489439610,-430.0,0.0002,2]
[362848162,1748489439621,-1691.11,0.0002,2]
[362848163,1748489439632,-430.0,0.0002,2]
[362848164,1748489439642,-347.84,0.0002,2]
[362848165,1748489439652,-430.0,0.0002,2]
[362848166,1748489439661,-619.67,0.0002,2]
[362848167,1748489439671,-2758.0,0.0002,2]
[362848168,1748489439680,-430.0,0.0002,2]
[362848169,1748489439689,-929.7,0.0002,2]
[362848170,1748489439699,-430.0,0.0002,2]
[362848171,1748489439708,-430.0,0.0002,2]
[362848172,1748489439718,-430.0,0.0002,2]
[362848173,1748489439727,-657.27,0.0002,2]
[362848174,1748489439736,-430.0,0.0002,2]
[362848175,1748489439745,-395.05970409,0.0002,2]
[362848176,1748489439755,-430.0,0.0002,2]
[362848177,1748489439764,-430.0,0.0002,2]
[362848178,1748489439774,-430.0,0.0002,2]
[362848179,1748489439783,-430.0,0.0002,2]
[362848180,1748489439792,-430.0,0.0002,2]
[362848181,1748489439801,-430.0,0.0002,2]
[362848182,1748489439810,-430.0,0.0002,2]
[362848183,1748489439819,-430.0,0.0002,2]
[362848184,1748489439828,-430.0,0.0002,2]
[362848186,1748489439839,-430.0,0.0002,2]
[362848187,1748489439848,-430.0,0.0002,2]
[362848188,1748489439858,-430.0,0.0002,2]
[362848189,1748489439867,-502.08399402,0.0002,2]
[362848190,1748489439877,-488.85,0.0002,2]
[362848192,1748489439887,-430.0,0.0002,2]
[362848193,1748489439898,-430.0,0.0002,2]
[362848194,1748489439908,-430.0,0.0002,2]
[362848195,1748489439917,-430.0,0.0002,2]
[362848196,1748489439928,-1505.89,0.0002,2]
[362848197,1748489439937,-430.0,0.0002,2]
[362848198,1748489439947,-430.0,0.0002,2]
[362848199,1748489439955,-430.0,0.0002,2]
[362848200,1748489439965,-430.0,0.0002,2]
[362848201,1748489439974,-430.0,0.0002,2]
[362848202,1748489439984,-430.0,0.0002,2]
[362848203,1748489439993,-430.0,0.0002,2]
[362848204,1748489440003,-430.0,0.0002,2]
[362848205,1748489440012,-430.0,0.0002,2]
[362848206,1748489440021,-1028.67,0.0002,2]
[362848207,1748489440030,-1452.69,0.0002,2]
[362848208,1748489440040,-204.27912968,0.00020138,2]
[362848209,1748489440050,-430.0,0.00020273,2]
[362848210,1748489440060,-430.0,0.00020273,2]
[362848211,1748489440069,-430.0,0.00020273,2]
[362848212,1748489440079,-570.6,0.00020273,2]
[362848213,1748489440089,-430.0,0.00020273,2]
[362848214,1748489440100,-430.0,0.00020273,2]
[362848215,1748489440109,-497.7642072,0.00020273,2]
[362848216,1748489440118,-430.0,0.00020273,2]
[362848217,1748489440128,-430.0,0.00020273,2]
[362848218,1748489440137,-430.0,0.00020273,2]
[362848219,1748489440148,-430.0,0.00020273,2]
[362848220,1748489440157,-826.71,0.00020273,2]
[362848221,1748489440167,-430.0,0.00020273,2]
[362848222,1748489440181,-1691.11,0.00020273,2]
[362848223,1748489440190,-430.0,0.00020273,2]
[362848224,1748489440200,-619.67,0.00020273,2]
[362848225,1748489440210,-2758.0,0.00020273,2]
[362848226,1748489440219,-430.0,0.00020273,2]
[362848227,1748489440228,-929.7,0.00020273,2]
[362848228,1748489440238,-430.0,0.00020273,2]
[362848229,1748489440247,-430.0,0.00020273,2]
[362848230,1748489440256,-430.0,0.00020273,2]
[362848232,1748489440266,-657.27,0.00020273,2]
[362848234,1748489440275,-510.43225148,0.00020273,2]
[362848235,1748489440284,-430.0,0.00020273,2]
[362848236,1748489440293,-430.0,0.00020273,2]
[362848237,1748489440302,-430.0,0.00020273,2]
[362848238,1748489440311,-430.0,0.00020273,2]
[362848239,1748489440322,-430.0,0.00020273,2]
[362848240,1748489440332,-430.0,0.00020273,2]
[362848241,1748489440342,-438.50603741,0.00020273,2]
[362848243,1748489440352,-430.0,0.00020273,2]
[362848245,1748489440361,-430.0,0.00020273,2]
[362848246,1748489440370,-430.0,0.00020273,2]
[362848247,1748489440380,-488.85,0.00020273,2]
[362848248,1748489440389,-430.0,0.00020273,2]
[362848249,1748489440398,-430.0,0.00020273,2]
[362848250,1748489440408,-430.0,0.00020273,2]
[362848251,1748489440418,-430.0,0.00020273,2]
[362848252,1748489440428,-1505.89,0.00020273,2]
[362848253,1748489440439,-430.0,0.00020273,2]
[362848254,1748489440449,-430.0,0.00020273,2]
[362848255,1748489440458,-430.0,0.00020273,2]
[362848256,1748489440467,-430.0,0.00020273,2]
[362848257,1748489440477,-430.0,0.00020273,2]
[362848258,1748489440486,-430.0,0.00020273,2]
[362848259,1748489440496,-430.0,0.00020273,2]
[362848260,1748489440505,-430.0,0.00020273,2]
[362848261,1748489440515,-430.0,0.00020273,2]
[362848262,1748489440524,-1028.67,0.00020273,2]
[362848263,1748489440533,-1452.69,0.00020273,2]
[362848264,1748489440543,-204.27912968,0.00020376,3]
[362848265,1748489440552,-614.26,0.00020538,3]
[362848266,1748489440562,-307.12,0.00020538,3]
[362848267,1748489440571,-173.27310817,0.00020539,2]
[362848268,1748489440580,-430.0,0.00020547,2]
[362848269,1748489440591,-430.0,0.00020547,2]
[362848270,1748489440600,-430.0,0.00020547,2]
[362848271,1748489440608,-430.0,0.00020547,2]
[362848272,1748489440617,-430.0,0.00020547,2]
[362848273,1748489440627,-430.0,0.00020547,2]
[362848274,1748489440636,-255.51913952,0.00020547,2]
[362848275,1748489440646,-826.71,0.00020547,2]
[362848276,1748489440657,-430.0,0.00020547,2]
[362848277,1748489440666,-1691.11,0.00020547,2]
[362848278,1748489440675,-430.0,0.00020547,2]
[362848279,1748489440686,-619.67,0.00020547,2]
[362848280,1748489440699,-2758.0,0.00020547,2]
[362848281,1748489440712,-430.0,0.00020547,2]
[362848282,1748489440722,-929.7,0.00020547,2]
[362848283,1748489440732,-430.0,0.00020547,2]
[362848284,1748489440741,-430.0,0.00020547,2]
[362848285,1748489440752,-430.0,0.00020547,2]
[362848286,1748489440763,-657.27,0.00020547,2]
[362848287,1748489440773,-430.0,0.00020547,2]
[362848288,1748489440783,-430.0,0.00020547,2]
[362848289,1748489440795,-430.0,0.00020547,2]
[362848290,1748489440805,-430.0,0.00020547,2]
[362848291,1748489440815,-430.0,0.00020547,2]
[362848292,1748489440825,-430.0,0.00020547,2]
[362848293,1748489440837,-430.0,0.00020547,2]
[362848294,1748489440846,-430.0,0.00020547,2]
[362848295,1748489440856,-430.0,0.00020547,2]
[362848296,1748489440866,-488.85,0.00020547,2]
[362848297,1748489440875,-430.0,0.00020547,2]
[362848298,1748489440884,-430.0,0.00020547,2]
[362848299,1748489440894,-430.0,0.00020547,2]
[362848300,1748489440903,-430.0,0.00020547,2]
[362848301,1748489440916,-1505.89,0.00020547,2]
[362848302,1748489440927,-430.0,0.00020547,2]
[362848303,1748489440937,-430.0,0.00020547,2]
[362848304,1748489440946,-430.0,0.00020547,2]
[362848305,1748489440955,-430.0,0.00020547,2]
[362848306,1748489440964,-430.0,0.00020547,2]
[362848307,1748489440973,-430.0,0.00020547,2]
[362848308,1748489440982,-430.0,0.00020547,2]
[362848309,1748489440991,-430.0,0.00020547,2]
[362848310,1748489441000,-430.0,0.00020547,2]
[362848311,1748489441010,-1028.67,0.00020547,2]
[362848312,1748489441019,-1452.69,0.00020547,2]
[362848313,1748489441028,-204.27912968,0.00020614,3]
[362848314,1748489441038,-405.829,0.000207,2]
[362848315,1748489441047,-430.0,0.00020821,2]
[362848316,1748489441056,-430.0,0.00020821,2]
[362848317,1748489441066,-430.0,0.00020821,2]
[362848318,1748489441075,-247.19728997,0.00020821,2]
[362848319,1748489441085,-430.0,0.00020821,2]
[362848320,1748489441095,-430.0,0.00020821,2]
[362848321,1748489441108,-826.71,0.00020821,2]
[362848322,1748489441118,-430.0,0.00020821,2]
[362848323,1748489441128,-1691.11,0.00020821,2]
[362848324,1748489441139,-505.64797856,0.00020821,2]
[362848325,1748489441148,-619.67,0.00020821,2]
[362848326,1748489441158,-2758.0,0.00020821,2]
[362848327,1748489441168,-430.0,0.00020821,2]
[362848328,1748489441260,-929.7,0.00020821,2]
[362848329,1748489441271,-430.0,0.00020821,2]
[362848330,1748489441281,-430.0,0.00020821,2]
[362848331,1748489441291,-181.20095711,0.00020821,2]
[362848332,1748489441300,-657.27,0.00020821,2]
[362848333,1748489441310,-430.0,0.00020821,2]
[362848334,1748489441319,-430.0,0.00020821,2]
[362848335,1748489441329,-430.0,0.00020821,2]
[362848336,1748489441339,-303.76869568,0.00020821,2]
[362848337,1748489441615,-126.23130432,0.00020821,2]
[362848338,1748489441625,-345.31408277,0.00020821,2]
[362848339,1748489441637,-84.68591723,0.00020821,2]
[362848340,1748489441646,-430.0,0.00020821,2]
[362848341,1748489441656,-430.0,0.00020821,2]
[362848342,1748489441666,-430.0,0.00020821,2]
[362848343,1748489441676,-430.0,0.00020821,2]
[362848344,1748489441686,-488.85,0.00020821,2]
[362848345,1748489441695,-375.56312031,0.00020821,2]
[362848346,1748489441707,-54.43687969,0.00020821,2]
[362848347,1748489441718,-430.0,0.00020821,2]
[362848348,1748489441727,-430.0,0.00020821,2]
[362848349,1748489441736,-496.46935909,0.00020821,2]
[362848350,1748489441746,-1505.89,0.00020821,2]
[362848351,1748489441755,-430.0,0.00020821,2]
[362848352,1748489441765,-430.0,0.00020821,2]
[362848353,1748489441775,-430.0,0.00020821,2]
[362848354,1748489441784,-430.0,0.00020821,2]
[362848355,1748489441795,-571.95657043,0.00020821,2]
[362848356,1748489441805,-430.0,0.00020821,2]
[362848357,1748489441815,-430.0,0.00020821,2]
[362848358,1748489441824,-430.0,0.00020821,2]
[362848359,1748489441833,-430.0,0.00020821,2]
[362848360,1748489441842,-1028.67,0.00020821,2]
[362848361,1748489441851,-1452.69,0.00020821,2]
[362848362,1748489441861,-204.27912968,0.00020852,4]
[362848363,1748489441870,-420.0,0.00020898,2]
[362848364,1748489441879,-914.0,0.00020998,2]
[362848365,1748489441888,-229.26895353,0.00021061,2]
[362848366,1748489441898,-423.31762986,0.00021061,2]
[362848367,1748489441907,-212.70147903,0.00021061,2]
[362848368,1748489441917,-160.0,0.00021061,2]
[362848369,1748489441927,-160.0,0.00021061,2]
[362848370,1748489441936,-842.5625,0.00021061,2]
[362848371,1748489441946,-204.27912968,0.0002109,4]
[362848372,1748489441955,-430.0,0.00021095,2]
[362848373,1748489441964,-430.0,0.00021095,2]
[362848374,1748489441974,-826.71,0.00021095,2]
[362848375,1748489441984,-430.0,0.00021095,2]
[362848376,1748489441993,-619.67,0.00021095,2]
[362848377,1748489442002,-2758.0,0.00021095,2]
[362848378,1748489442011,-929.7,0.00021095,2]
[362848379,1748489442021,-487.83660049,0.00021095,2]
[362848380,1748489442030,-430.0,0.00021095,2]
[362848381,1748489442039,-657.27,0.00021095,2]
[362848382,1748489442048,-430.0,0.00021095,2]
[362848383,1748489442057,-430.0,0.00021095,2]
[362848384,1748489442066,-430.0,0.00021095,2]
[362848385,1748489442075,-430.0,0.00021095,2]
[362848386,1748489442085,-155.8431355,0.00021095,2]
[362848387,1748489442094,-430.0,0.00021095,2]
[362848388,1748489442106,-430.0,0.00021095,2]
[362848389,1748489442115,-430.0,0.00021095,2]
[362848390,1748489442125,-430.0,0.00021095,2]
[362848391,1748489442134,-488.85,0.00021095,2]
[362848392,1748489442145,-430.0,0.00021095,2]
[362848393,1748489442155,-430.0,0.00021095,2]
[362848394,1748489442165,-1505.89,0.00021095,2]
[362848395,1748489442175,-430.0,0.00021095,2]
[362848396,1748489442184,-430.0,0.00021095,2]
[362848397,1748489442194,-430.0,0.00021095,2]
[362848398,1748489442203,-430.0,0.00021095,2]
[362848399,1748489442214,-430.0,0.00021095,2]
[362848400,1748489442223,-430.0,0.00021095,2]
[362848401,1748489442232,-430.0,0.00021095,2]
[362848402,1748489442242,-1028.67,0.00021095,2]
[362848403,1748489442251,-1452.69,0.00021095,2]
[362848404,1748489442260,-500.0,0.0002115,2]
[362848405,1748489442270,-500.0,0.0002115,2]
[362848406,1748489442279,-800.0,0.00021164,2]
[362848407,1748489442288,-500.0,0.00021245,2]
[362848408,1748489442298,-500.0,0.00021245,2]
[362848409,1748489442307,-266.32526543,0.00021245,2]
[362848410,1748489442318,-600.0,0.00021245,2]
[362848411,1748489442327,-500.0,0.00021245,2]
[362848412,1748489442336,-538.33834844,0.00021245,2]
[362848413,1748489442347,-500.0,0.00021245,2]
[362848414,1748489442357,-500.0,0.00021245,2]
[362848415,1748489442366,-501.47388563,0.00021245,2]
[362848416,1748489442382,-500.0,0.00021245,2]
[362848417,1748489442392,-419.54407226,0.00021245,2]
[362848418,1748489442402,-347.47889072,0.00021245,2]
[362848419,1748489442412,-500.0,0.00021245,2]
[362848420,1748489442422,-513.65882262,0.00021245,2]
[362848421,1748489442431,-176.25974023,0.00021245,2]
[362848422,1748489442440,-501.71650922,0.00021245,2]
[362848423,1748489442450,-501.33486083,0.00021245,2]
[362848424,1748489442460,-500.0,0.00021245,2]
[362848425,1748489442469,-500.0,0.00021245,2]
[362848426,1748489442479,-500.0,0.00021245,2]
[362848427,1748489442489,-500.0,0.00021245,2]
[362848428,1748489442499,-500.0,0.00021245,2]
[362848429,1748489442508,-500.0,0.00021245,2]
[362848430,1748489442517,-502.27571044,0.00021245,2]
[362848431,1748489442527,-501.17373126,0.00021245,2]
[362848432,1748489442536,-173.27310817,0.00021269,2]
[362848433,1748489442546,-500.0,0.000213,2]
[362848434,1748489442555,-500.0,0.000213,2]
[362848435,1748489442564,-502.26417517,0.000213,2]
[362848436,1748489442573,-500.0,0.000213,2]
[362848437,1748489442584,-500.2658825,0.000213,2]
[362848438,1748489442595,-528.85647862,0.000213,2]
[362848440,1748489442606,-204.27912968,0.00021329,5]
[362848441,1748489442616,-430.0,0.00021369,2]
[362848442,1748489442627,-826.71,0.00021369,2]
[362848443,1748489442637,-619.67,0.00021369,2]
[362848444,1748489442647,-2758.0,0.00021369,2]
[362848445,1748489442658,-929.7,0.00021369,2]
[362848446,1748489442668,-430.0,0.00021369,2]
[362848448,1748489442679,-657.27,0.00021369,2]
[362848449,1748489442689,-430.0,0.00021369,2]
[362848450,1748489442699,-517.12,0.00021369,2]
[362848451,1748489442709,-430.0,0.00021369,2]
[362848452,1748489442719,-430.0,0.00021369,2]
[362848453,1748489442728,-430.0,0.00021369,2]
[362848454,1748489442737,-430.0,0.00021369,2]
[362848455,1748489442747,-488.85,0.00021369,2]
[362848456,1748489442756,-334.27792676,0.00021369,2]
[362848457,1748489442765,-430.0,0.00021369,2]
[362848458,1748489442775,-1505.89,0.00021369,2]
[362848461,1748489442784,-430.0,0.00021369,2]
[362848462,1748489442793,-430.0,0.00021369,2]
[362848464,1748489442802,-430.0,0.00021369,2]
[362848466,1748489442812,-430.0,0.00021369,2]
[362848468,1748489442821,-1028.67,0.00021369,2]
[362848469,1748489442831,-1452.69,0.00021369,2]
[362848470,1748489442840,-500.0,0.000215,2]
[362848471,1748489442849,-500.0,0.000215,2]
[362848472,1748489442858,-500.0,0.000215,2]
[362848473,1748489442867,-204.27912968,0.00021567,5]
[362848474,1748489442876,-430.0,0.00021643,2]
[362848475,1748489442886,-826.71,0.00021643,2]
[362848476,1748489442895,-619.67,0.00021643,2]
[362848477,1748489442904,-2758.0,0.00021643,2]
[362848478,1748489442913,-929.7,0.00021643,2]
[362848479,1748489442922,-430.0,0.00021643,2]
[362848480,1748489442931,-657.27,0.00021643,2]
[362848481,1748489442941,-430.0,0.00021643,2]
[362848482,1748489442950,-430.0,0.00021643,2]
[362848483,1748489442959,-430.0,0.00021643,2]
[362848484,1748489442968,-430.0,0.00021643,2]
[362848485,1748489442977,-430.0,0.00021643,2]
[362848486,1748489442987,-488.85,0.00021643,2]
[362848487,1748489442995,-430.0,0.00021643,2]
[362848488,1748489443005,-1505.89,0.00021643,2]
[362848489,1748489443014,-430.0,0.00021643,2]
[362848490,1748489443023,-430.0,0.00021643,2]
[362848491,1748489443032,-430.0,0.00021643,2]
[362848492,1748489443041,-430.0,0.00021643,2]
[362848493,1748489443051,-1028.67,0.00021643,2]
[362848496,1748489443155,-1452.69,0.00021643,2]
[362848497,1748489443165,-508.5115965,0.00021698,2]
[362848498,1748489443175,-1000.0,0.00021698,2]
[362848499,1748489443185,-207.4,0.00021747,2]
[362848500,1748489443195,-502.70993449,0.00021793,2]
[362848501,1748489443206,-1200.0,0.00021793,2]
[362848502,1748489443216,-1001.52577846,0.00021793,2]
[362848503,1748489443225,-1001.06523105,0.00021793,2]
[362848504,1748489443235,-1001.57284855,0.00021793,2]
[362848505,1748489443244,-1000.0,0.00021793,2]
[362848506,1748489443253,-503.15297277,0.00021793,2]
[362848507,1748489443263,-1000.0,0.00021793,2]
[362848508,1748489443272,-501.64564373,0.00021793,2]
[362848509,1748489443281,-1000.0,0.00021793,2]
[362848510,1748489443290,-1000.0,0.00021793,2]
[362848511,1748489443300,-1000.0,0.00021793,2]
[362848512,1748489443310,-12703.74101794,0.000218,4]
[362848513,1748489443320,-204.27912968,0.00021805,6]
[362848514,1748489443330,-4924.34876457,0.0002181,7]
[362848515,1748489443341,-1000.0,0.00021848,2]
[362848516,1748489443350,-1000.0,0.00021848,2]
[362848517,1748489443359,-1000.0,0.00021848,2]
[362848518,1748489443369,-430.0,0.00021917,2]
[362848519,1748489443378,-826.71,0.00021917,2]
[362848520,1748489443387,-619.67,0.00021917,2]
[362848521,1748489443397,-2758.0,0.00021917,2]
[362848522,1748489443406,-929.7,0.00021917,2]
[362848523,1748489443415,-430.0,0.00021917,2]
[362848524,1748489443425,-657.27,0.00021917,2]
[362848525,1748489443434,-430.0,0.00021917,2]
[362848526,1748489443444,-430.0,0.00021917,2]
[362848527,1748489443454,-430.0,0.00021917,2]
[362848528,1748489443463,-430.0,0.00021917,2]
[362848529,1748489443473,-430.0,0.00021917,2]
[362848530,1748489443484,-488.85,0.00021917,2]
[362848531,1748489443494,-430.0,0.00021917,2]
[362848532,1748489443504,-1505.89,0.00021917,2]
[362848533,1748489443514,-430.0,0.00021917,2]
[362848534,1748489443524,-500.0,0.00021917,2]
[362848535,1748489443535,-402.66404903,0.00021917,2]
[362848536,1748489443545,-430.0,0.00021917,2]
[362848537,1748489443556,-430.0,0.00021917,2]
[362848538,1748489443566,-430.0,0.00021917,2]
[362848539,1748489443576,-1028.67,0.00021917,2]
[362848540,1748489443585,-1452.69,0.00021917,2]
[362848541,1748489443597,-1458.0,0.00022,2]
[362848542,1748489443606,-4618.82,0.00022,7]
[362848543,1748489443616,-6099.06,0.00022,2]
[362848544,1748489443625,-2702.12,0.00022,7]
[362848545,1748489443634,-2000.0,0.00022,2]
[362848546,1748489443643,-1437.52404599,0.00022,2]
[362848547,1748489443652,-204.27912968,0.00022043,6]
[362848548,1748489443662,-502.32818901,0.00022048,2]
[362848549,1748489443671,-544.94703601,0.00022048,2]
[362848550,1748489443680,-151.0,0.0002208,7]
[362848551,1748489443690,-151.0,0.0002208,7]
[362848552,1748489443700,-151.0,0.0002208,7]
[362848553,1748489443709,-151.0,0.0002208,7]
[362848554,1748489443719,-273.08200481,0.00022191,2]
[362848555,1748489443728,-826.71,0.00022191,2]
[362848556,1748489443740,-619.67,0.00022191,2]
[362848557,1748489443749,-2758.0,0.00022191,2]
[362848558,1748489443758,-929.7,0.00022191,2]
[362848559,1748489443768,-430.0,0.00022191,2]
[362848560,1748489443777,-657.27,0.00022191,2]
[362848561,1748489443787,-430.0,0.00022191,2]
[362848562,1748489443797,-430.0,0.00022191,2]
[362848563,1748489443808,-430.0,0.00022191,2]
[362848564,1748489443819,-430.0,0.00022191,2]
[362848565,1748489443829,-430.0,0.00022191,2]
[362848566,1748489443842,-488.85,0.00022191,2]
[362848567,1748489443852,-430.0,0.00022191,2]
[362848568,1748489443861,-1505.89,0.00022191,2]
[362848569,1748489443871,-430.0,0.00022191,2]
[362848570,1748489443880,-534.16813463,0.00022191,2]
[362848571,1748489443890,-430.0,0.00022191,2]
[362848572,1748489443899,-430.0,0.00022191,2]
[362848573,1748489443908,-1028.67,0.00022191,2]
[362848574,1748489443918,-1452.69,0.00022191,2]
[362848575,1748489443927,-569.42552681,0.00022246,2]
[362848576,1748489443937,-204.27912968,0.00022281,6]
[362848577,1748489443946,-1868.6,0.00022283,2]
[362848578,1748489443955,-1800.0,0.00022341,2]
[362848579,1748489443964,-662.73683903,0.00022341,2]
[362848580,1748489443974,-504.32502589,0.00022341,2]
[362848581,1748489443982,-1002.95117659,0.00022341,2]
[362848582,1748489443992,-1004.31147132,0.00022341,2]
[362848583,1748489444001,-536.63508491,0.00022341,2]
[362848584,1748489444010,-1500.0,0.00022396,2]
[362848585,1748489444019,-1500.0,0.00022396,2]
[362848586,1748489444029,-500.0,0.00022433,2]
[362848587,1748489444046,-826.71,0.00022465,2]
[362848588,1748489444063,-619.67,0.00022465,2]
[362848589,1748489444078,-2758.0,0.00022465,2]
[362848590,1748489444090,-929.7,0.00022465,2]
[362848591,1748489444108,-430.0,0.00022465,2]
[362848592,1748489444122,-657.27,0.00022465,2]
[362848593,1748489444137,-430.0,0.00022465,2]
[362848594,1748489444153,-430.0,0.00022465,2]
[362848595,1748489444165,-430.0,0.00022465,2]
[362848596,1748489444180,-430.0,0.00022465,2]
[362848597,1748489444196,-430.0,0.00022465,2]
[362848598,1748489444208,-488.85,0.00022465,2]
[362848599,1748489444221,-430.0,0.00022465,2]
[362848600,1748489444234,-1505.89,0.00022465,2]
[362848601,1748489444247,-430.0,0.00022465,2]
[362848602,1748489444260,-430.0,0.00022465,2]
[362848603,1748489444273,-1028.67,0.00022465,2]
[362848604,1748489444283,-1452.69,0.00022465,2]
[362848605,1748489444296,-204.27912968,0.00022519,7]
[362848606,1748489444308,-271.055031,0.00022603,2]
[362848607,1748489444322,-826.71,0.00022739,2]
[362848608,1748489444337,-619.67,0.00022739,2]
[362848609,1748489444350,-2758.0,0.00022739,2]
[362848610,1748489444364,-929.7,0.00022739,2]
[362848611,1748489444378,-430.0,0.00022739,2]
[362848612,1748489444392,-657.27,0.00022739,2]
[362848613,1748489444403,-430.0,0.00022739,2]
[362848614,1748489444413,-430.0,0.00022739,2]
[362848615,1748489444425,-430.0,0.00022739,2]
[362848616,1748489444439,-430.0,0.00022739,2]
[362848617,1748489444452,-430.0,0.00022739,2]
[362848618,1748489444464,-488.85,0.00022739,2]